[Event "Late-Titled-Tuesday-Blitz-June-18-2024"]
[Site "Chess.com"]
[Date "2024.06.18"]
[Round "8"]
[White "Matalon"]
[Black "subham777"]
[Result "0-1"]
[WhiteElo "2492"]
[BlackElo "2624"]
[TimeControl "180+1"]
[EndTime "15:27:19 PDT"]
[Termination "subham777 won by resignation"]

1. e4 {[%clk 0:02:36.1]} 1... e6 {[%clk 0:02:59.6]} 2. d4 {[%clk 0:02:35.4]}
2... d5 {[%clk 0:02:59.9]} 3. Nd2 {[%clk 0:02:36]} 3... c5 {[%clk 0:02:59.8]} 4.
Ngf3 {[%clk 0:02:35.7]} 4... cxd4 {[%clk 0:02:55.3]} 5. Nxd4 {[%clk 0:02:35.4]}
5... Nc6 {[%clk 0:02:53.3]} 6. Bb5 {[%clk 0:02:34.8]} 6... Bd7 {[%clk
0:02:52.5]} 7. Nxc6 {[%clk 0:02:34.7]} 7... bxc6 {[%clk 0:02:52.6]} 8. Bd3
{[%clk 0:02:31]} 8... Bd6 {[%clk 0:02:53.2]} 9. Qe2 {[%clk 0:02:26.2]} 9... Ne7
{[%clk 0:02:47.1]} 10. O-O {[%clk 0:02:25.6]} 10... O-O {[%clk 0:02:41]} 11. c4
{[%clk 0:02:25.2]} 11... Ng6 {[%clk 0:02:39.9]} 12. Nf3 {[%clk 0:02:18.5]} 12...
c5 {[%clk 0:02:32.2]} 13. exd5 {[%clk 0:02:12]} 13... exd5 {[%clk 0:02:33.1]}
14. Bxg6 {[%clk 0:01:55.9]} 14... fxg6 {[%clk 0:02:27.8]} 15. cxd5 {[%clk
0:01:56.8]} 15... Bg4 {[%clk 0:02:25.7]} 16. Qe4 {[%clk 0:01:47.5]} 16... Bxf3
{[%clk 0:02:23]} 17. gxf3 {[%clk 0:01:47.4]} 17... Re8 {[%clk 0:02:15.3]} 18.
Qg4 {[%clk 0:01:46.3]} 18... Qf6 {[%clk 0:02:09.9]} 19. Be3 {[%clk 0:01:39.3]}
19... Qxb2 {[%clk 0:01:56.8]} 20. Rac1 {[%clk 0:01:29.2]} 20... Rxe3 {[%clk
0:01:50.5]} 21. Rb1 {[%clk 0:01:02.9]} 21... Qxa2 {[%clk 0:01:30.6]} 22. Ra1
{[%clk 0:01:01.4]} 22... Qe2 {[%clk 0:01:27.9]} 23. Rae1 {[%clk 0:00:56.9]}
23... Qxf3 {[%clk 0:01:16.9]} 24. Qd7 {[%clk 0:00:56.9]} 24... Qf4 {[%clk
0:01:03.6]} 0-1

[Event "Late-Titled-Tuesday-Blitz-June-18-2024"]
[Site "Chess.com"]
[Date "2024.06.18"]
[Round "8"]
[White "Chessbard1972"]
[Black "Perecke"]
[Result "1-0"]
[WhiteElo "2313"]
[BlackElo "2501"]
[TimeControl "180+1"]
[EndTime "15:27:19 PDT"]
[Termination "Chessbard1972 won by checkmate"]

1. e4 {[%clk 0:03:00.9]} 1... e5 {[%clk 0:02:51.3]} 2. Nf3 {[%clk 0:02:59.9]}
2... Nc6 {[%clk 0:02:45.3]} 3. Bc4 {[%clk 0:02:59.3]} 3... Bc5 {[%clk
0:02:43.8]} 4. c3 {[%clk 0:02:58.9]} 4... Nf6 {[%clk 0:02:43.2]} 5. d4 {[%clk
0:02:59.1]} 5... exd4 {[%clk 0:02:42]} 6. b4 {[%clk 0:02:59.3]} 6... Bb6 {[%clk
0:02:40.2]} 7. e5 {[%clk 0:02:59.2]} 7... d5 {[%clk 0:02:34.6]} 8. exf6 {[%clk
0:02:58.8]} 8... dxc4 {[%clk 0:02:34.3]} 9. Qe2+ {[%clk 0:02:58.8]} 9... Be6
{[%clk 0:02:26.6]} 10. b5 {[%clk 0:02:58.5]} 10... d3 {[%clk 0:02:15.4]} 11. Qe4
{[%clk 0:02:53.4]} 11... Na5 {[%clk 0:02:05.9]} 12. fxg7 {[%clk 0:02:52.4]}
12... Rg8 {[%clk 0:02:05.7]} 13. Qxh7 {[%clk 0:02:52.2]} 13... Kd7 {[%clk
0:02:00.8]} 14. Bg5 {[%clk 0:02:49.2]} 14... f6 {[%clk 0:01:58.6]} 15. Bh6
{[%clk 0:02:37.7]} 15... Qe7 {[%clk 0:01:56.1]} 16. O-O {[%clk 0:02:35.6]} 16...
Rae8 {[%clk 0:01:51.1]} 17. Nbd2 {[%clk 0:02:32.3]} 17... Kc8 {[%clk 0:01:47.6]}
18. Rae1 {[%clk 0:02:29.7]} 18... Qf7 {[%clk 0:01:43.2]} 19. Ne4 {[%clk
0:02:17.9]} 19... Bd5 {[%clk 0:01:26.3]} 20. Qf5+ {[%clk 0:02:05.2]} 20... Kb8
{[%clk 0:00:22.9]} 21. Nxf6 {[%clk 0:01:59.8]} 21... Be6 {[%clk 0:00:15.6]} 22.
Ng5 {[%clk 0:01:40.7]} 22... Bxf5 {[%clk 0:00:02.1]} 23. Nxf7 {[%clk 0:01:39.9]}
23... Rxe1 {[%clk 0:00:03]} 24. Rxe1 {[%clk 0:01:39]} 24... d2 {[%clk
0:00:03.9]} 25. Bxd2 {[%clk 0:01:35.5]} 25... Rxg7 {[%clk 0:00:03.7]} 26. Re8+
{[%clk 0:01:34.6]} 26... Bc8 {[%clk 0:00:04.4]} 27. Nd7+ {[%clk 0:01:34.4]}
27... Ka8 {[%clk 0:00:03.6]} 28. Rxc8# {[%clk 0:01:34.3]} 1-0

[Event "Late-Titled-Tuesday-Blitz-June-18-2024"]
[Site "Chess.com"]
[Date "2024.06.18"]
[Round "8"]
[White "Annawel"]
[Black "evgchess5"]
[Result "0-1"]
[WhiteElo "3063"]
[BlackElo "2933"]
[TimeControl "180+1"]
[EndTime "15:27:22 PDT"]
[Termination "evgchess5 won by resignation"]

1. e4 {[%clk 0:03:00.2]} 1... c5 {[%clk 0:02:59.1]} 2. Nf3 {[%clk 0:03:00.1]}
2... e6 {[%clk 0:02:56.1]} 3. d4 {[%clk 0:02:58]} 3... cxd4 {[%clk 0:02:56.1]}
4. Nxd4 {[%clk 0:02:58.9]} 4... Nc6 {[%clk 0:02:55.9]} 5. Nc3 {[%clk 0:02:54.3]}
5... a6 {[%clk 0:02:56]} 6. Be2 {[%clk 0:02:50.4]} 6... d6 {[%clk 0:02:55.2]} 7.
O-O {[%clk 0:02:50.1]} 7... Nf6 {[%clk 0:02:55.6]} 8. Be3 {[%clk 0:02:49.6]}
8... Be7 {[%clk 0:02:55.7]} 9. f4 {[%clk 0:02:49.9]} 9... O-O {[%clk 0:02:55.8]}
10. Kh1 {[%clk 0:02:49]} 10... Qc7 {[%clk 0:02:49.4]} 11. Qe1 {[%clk 0:02:39.5]}
11... Nxd4 {[%clk 0:02:48.7]} 12. Bxd4 {[%clk 0:02:39.7]} 12... b5 {[%clk
0:02:49.2]} 13. a3 {[%clk 0:02:37.3]} 13... Bb7 {[%clk 0:02:49.1]} 14. Bd3
{[%clk 0:02:36.6]} 14... Nd7 {[%clk 0:02:47.6]} 15. Qg3 {[%clk 0:02:24]} 15...
e5 {[%clk 0:02:35]} 16. Be3 {[%clk 0:02:07.5]} 16... Bf6 {[%clk 0:02:31.5]} 17.
Rad1 {[%clk 0:01:58.4]} 17... exf4 {[%clk 0:02:27.6]} 18. Bxf4 {[%clk
0:01:58.8]} 18... Be5 {[%clk 0:02:27.6]} 19. Ne2 {[%clk 0:01:54.2]} 19... Rae8
{[%clk 0:02:16.7]} 20. c3 {[%clk 0:01:38.4]} 20... Nc5 {[%clk 0:02:15.9]} 21.
Nd4 {[%clk 0:01:11.5]} 21... Nxe4 {[%clk 0:02:10.3]} 22. Qh4 {[%clk 0:01:11.7]}
22... Bxf4 {[%clk 0:01:54.9]} 23. Qxf4 {[%clk 0:01:06.7]} 23... g6 {[%clk
0:01:38.4]} 24. Nf5 {[%clk 0:01:02.8]} 24... gxf5 {[%clk 0:01:31.5]} 25. Bxe4
{[%clk 0:01:02]} 25... Bxe4 {[%clk 0:01:25.6]} 26. Qg5+ {[%clk 0:01:01.8]} 26...
Kh8 {[%clk 0:01:25.7]} 27. Qf6+ {[%clk 0:01:02.3]} 27... Kg8 {[%clk 0:01:25.8]}
28. Qg5+ {[%clk 0:00:33]} 28... Kh8 {[%clk 0:01:25.7]} 29. Qf6+ {[%clk
0:00:33.9]} 29... Kg8 {[%clk 0:01:25.7]} 30. Rd3 {[%clk 0:00:26.8]} 30... f4
{[%clk 0:01:18.5]} 0-1

[Event "Late-Titled-Tuesday-Blitz-June-18-2024"]
[Site "Chess.com"]
[Date "2024.06.18"]
[Round "8"]
[White "chess94cu"]
[Black "js20000"]
[Result "0-1"]
[WhiteElo "2628"]
[BlackElo "2811"]
[TimeControl "180+1"]
[EndTime "15:27:28 PDT"]
[Termination "js20000 won by checkmate"]

1. e4 {[%clk 0:02:58.3]} 1... d6 {[%clk 0:02:59.3]} 2. d4 {[%clk 0:02:57.1]}
2... Nf6 {[%clk 0:02:59.8]} 3. Nc3 {[%clk 0:02:57.3]} 3... e6 {[%clk 0:03:00]}
4. Nf3 {[%clk 0:02:57.4]} 4... Be7 {[%clk 0:02:58.4]} 5. Bd3 {[%clk 0:02:57.5]}
5... Nc6 {[%clk 0:02:57.8]} 6. e5 {[%clk 0:02:56.3]} 6... Nd7 {[%clk 0:02:56.4]}
7. Qe2 {[%clk 0:02:55.1]} 7... Nb4 {[%clk 0:02:51]} 8. a3 {[%clk 0:02:35.9]}
8... Nxd3+ {[%clk 0:02:50.6]} 9. Qxd3 {[%clk 0:02:36.8]} 9... d5 {[%clk
0:02:51]} 10. b4 {[%clk 0:02:35.5]} 10... a5 {[%clk 0:02:49.6]} 11. b5 {[%clk
0:02:35.1]} 11... c5 {[%clk 0:02:50.2]} 12. bxc6 {[%clk 0:02:35.2]} 12... bxc6
{[%clk 0:02:51.1]} 13. Bf4 {[%clk 0:02:32.4]} 13... Ba6 {[%clk 0:02:50.3]} 14.
Qe3 {[%clk 0:02:32.1]} 14... c5 {[%clk 0:02:50.7]} 15. h4 {[%clk 0:02:28.4]}
15... h6 {[%clk 0:02:46.2]} 16. Ne2 {[%clk 0:02:17.3]} 16... cxd4 {[%clk
0:02:43.8]} 17. Nfxd4 {[%clk 0:02:14.6]} 17... Bc5 {[%clk 0:02:43.8]} 18. c3
{[%clk 0:02:09.4]} 18... Rc8 {[%clk 0:02:36.7]} 19. h5 {[%clk 0:02:00]} 19...
Bxd4 {[%clk 0:02:34.8]} 20. Nxd4 {[%clk 0:02:00.9]} 20... Nc5 {[%clk 0:02:34]}
21. Rh3 {[%clk 0:01:55.1]} 21... Nd3+ {[%clk 0:02:33]} 22. Kd2 {[%clk
0:01:51.6]} 22... Qc7 {[%clk 0:02:31.1]} 23. Ne2 {[%clk 0:01:27.5]} 23... Nc5
{[%clk 0:02:29.8]} 24. Ke1 {[%clk 0:01:22.4]} 24... Nd3+ {[%clk 0:02:25]} 25.
Kd2 {[%clk 0:01:22.1]} 25... Rb8 {[%clk 0:02:21]} 26. Ra2 {[%clk 0:01:19.6]}
26... Qc4 {[%clk 0:02:16.1]} 27. Rc2 {[%clk 0:01:13.7]} 27... Nc5 {[%clk
0:02:14.2]} 28. f3 {[%clk 0:01:04.4]} 28... Rb1 {[%clk 0:02:09.2]} 29. Nc1
{[%clk 0:00:40.6]} 29... Kd7 {[%clk 0:01:52.5]} 30. Rh1 {[%clk 0:00:39.1]} 30...
Rhb8 {[%clk 0:01:50.7]} 31. Rd1 {[%clk 0:00:36.6]} 31... R8b2 {[%clk 0:01:44.3]}
32. Qd4 {[%clk 0:00:21.8]} 32... Rxc2+ {[%clk 0:01:32.3]} 33. Kxc2 {[%clk
0:00:22.7]} 33... Rxc1+ {[%clk 0:01:32.8]} 34. Rxc1 {[%clk 0:00:20.8]} 34...
Qa2+ {[%clk 0:01:31.8]} 35. Kd1 {[%clk 0:00:19]} 35... Qe2# {[%clk 0:01:32.7]}
0-1

[Event "Late-Titled-Tuesday-Blitz-June-18-2024"]
[Site "Chess.com"]
[Date "2024.06.18"]
[Round "8"]
[White "amylazy"]
[Black "Chigorinetz"]
[Result "1-0"]
[WhiteElo "2497"]
[BlackElo "2607"]
[TimeControl "180+1"]
[EndTime "15:27:28 PDT"]
[Termination "amylazy won by checkmate"]

1. d4 {[%clk 0:03:00.9]} 1... d5 {[%clk 0:02:21.8]} 2. c4 {[%clk 0:02:59.9]}
2... Nc6 {[%clk 0:02:21.6]} 3. e3 {[%clk 0:02:56.8]} 3... dxc4 {[%clk
0:02:21.1]} 4. Bxc4 {[%clk 0:02:56.2]} 4... e5 {[%clk 0:02:21.5]} 5. Nf3 {[%clk
0:02:55.9]} 5... exd4 {[%clk 0:02:21.7]} 6. exd4 {[%clk 0:02:50.2]} 6... Bd6
{[%clk 0:02:22.2]} 7. O-O {[%clk 0:02:50]} 7... Nf6 {[%clk 0:02:17.4]} 8. Re1+
{[%clk 0:02:49.4]} 8... Be7 {[%clk 0:02:17.6]} 9. d5 {[%clk 0:02:47.8]} 9... Nb8
{[%clk 0:02:16.8]} 10. Qe2 {[%clk 0:02:41.2]} 10... Kf8 {[%clk 0:02:05]} 11. Nc3
{[%clk 0:02:40.1]} 11... Bg4 {[%clk 0:02:02.8]} 12. Bg5 {[%clk 0:02:39]} 12...
Nbd7 {[%clk 0:02:01.2]} 13. h3 {[%clk 0:02:33.7]} 13... Bh5 {[%clk 0:02:00.1]}
14. Qe3 {[%clk 0:02:25.3]} 14... Nb6 {[%clk 0:01:52.1]} 15. Bb3 {[%clk
0:02:23.8]} 15... Qd6 {[%clk 0:01:49.4]} 16. Nb5 {[%clk 0:02:11.5]} 16... Qd7
{[%clk 0:01:47.4]} 17. Rac1 {[%clk 0:01:40.2]} 17... Bxf3 {[%clk 0:01:40.5]} 18.
Rxc7 {[%clk 0:01:36.6]} 18... Qd8 {[%clk 0:01:06.7]} 19. Qxe7+ {[%clk
0:01:24.6]} 19... Qxe7 {[%clk 0:01:05.9]} 20. Rexe7 {[%clk 0:01:25.5]} 20... Bh5
{[%clk 0:01:05.9]} 21. Bxf6 {[%clk 0:01:22.8]} 21... gxf6 {[%clk 0:01:05.4]} 22.
d6 {[%clk 0:01:20.5]} 22... Kg7 {[%clk 0:01:03.1]} 23. Bxf7 {[%clk 0:01:17.8]}
23... Bxf7 {[%clk 0:00:58.6]} 24. Rxf7+ {[%clk 0:01:17.6]} 24... Kg6 {[%clk
0:00:59.5]} 25. Rg7+ {[%clk 0:01:00.9]} 25... Kf5 {[%clk 0:00:57.7]} 26. Rce7
{[%clk 0:01:00.5]} 26... Rad8 {[%clk 0:00:35.6]} 27. Nd4+ {[%clk 0:00:59]} 27...
Kf4 {[%clk 0:00:35.5]} 28. g3# {[%clk 0:00:59]} 1-0

[Event "Late-Titled-Tuesday-Blitz-June-18-2024"]
[Site "Chess.com"]
[Date "2024.06.18"]
[Round "8"]
[White "Individoom"]
[Black "mostafa_sakha"]
[Result "1-0"]
[WhiteElo "2790"]
[BlackElo "2445"]
[TimeControl "180+1"]
[EndTime "15:27:40 PDT"]
[Termination "Individoom won by resignation"]

1. b3 {[%clk 0:03:00.9]} 1... e5 {[%clk 0:02:58.6]} 2. Bb2 {[%clk 0:03:00.2]}
2... Nc6 {[%clk 0:02:58.8]} 3. e3 {[%clk 0:02:59.9]} 3... Nf6 {[%clk 0:02:59.1]}
4. Bb5 {[%clk 0:02:59.6]} 4... Bd6 {[%clk 0:02:59]} 5. Ne2 {[%clk 0:02:58]} 5...
O-O {[%clk 0:02:53.8]} 6. Ng3 {[%clk 0:02:57.5]} 6... Ne7 {[%clk 0:02:46.2]} 7.
Be2 {[%clk 0:02:50.9]} 7... c5 {[%clk 0:02:40.2]} 8. O-O {[%clk 0:02:40]} 8...
Bc7 {[%clk 0:02:40]} 9. d4 {[%clk 0:02:39.5]} 9... cxd4 {[%clk 0:02:34.5]} 10.
exd4 {[%clk 0:02:39.2]} 10... e4 {[%clk 0:02:35]} 11. c4 {[%clk 0:02:21.6]}
11... d5 {[%clk 0:02:34]} 12. Na3 {[%clk 0:02:21.7]} 12... a6 {[%clk 0:02:24.3]}
13. Nc2 {[%clk 0:02:21.2]} 13... Be6 {[%clk 0:02:15.4]} 14. Ne3 {[%clk
0:02:20.7]} 14... Qd7 {[%clk 0:02:13.9]} 15. Rc1 {[%clk 0:02:16.4]} 15... Ng6
{[%clk 0:02:07.8]} 16. cxd5 {[%clk 0:02:09]} 16... Nxd5 {[%clk 0:02:06.4]} 17.
Nxe4 {[%clk 0:02:03.1]} 17... Ndf4 {[%clk 0:01:35.1]} 18. Bf3 {[%clk 0:02:00.2]}
18... Nh4 {[%clk 0:01:15.5]} 19. d5 {[%clk 0:01:45.4]} 19... Bh3 {[%clk
0:01:09.5]} 20. Kh1 {[%clk 0:01:20.6]} 20... f5 {[%clk 0:00:59.7]} 21. Ng5
{[%clk 0:01:11.8]} 21... Bxg2+ {[%clk 0:00:51]} 22. Nxg2 {[%clk 0:01:10.6]}
22... Nfxg2 {[%clk 0:00:42.5]} 23. Bxg2 {[%clk 0:01:10.4]} 23... Qd6 {[%clk
0:00:42.5]} 24. Rxc7 {[%clk 0:01:08.4]} 24... Qxc7 {[%clk 0:00:42]} 25. Ne6
{[%clk 0:01:07.3]} 25... Qf7 {[%clk 0:00:30.9]} 26. Nxf8 {[%clk 0:01:04.6]}
26... Rxf8 {[%clk 0:00:28.9]} 27. d6 {[%clk 0:01:04.4]} 27... f4 {[%clk
0:00:25.4]} 28. Bd5 {[%clk 0:01:03.3]} 1-0

[Event "Late-Titled-Tuesday-Blitz-June-18-2024"]
[Site "Chess.com"]
[Date "2024.06.18"]
[Round "8"]
[White "Slovineanu"]
[Black "ReadySkate"]
[Result "0-1"]
[WhiteElo "2552"]
[BlackElo "2773"]
[TimeControl "180+1"]
[EndTime "15:27:41 PDT"]
[Termination "ReadySkate won by resignation"]

1. d4 {[%clk 0:02:57.4]} 1... Nf6 {[%clk 0:03:00.4]} 2. Nf3 {[%clk 0:02:57]}
2... g6 {[%clk 0:03:00.8]} 3. Nbd2 {[%clk 0:02:55.6]} 3... d5 {[%clk 0:03:00.3]}
4. e3 {[%clk 0:02:55.8]} 4... Bg7 {[%clk 0:03:00.6]} 5. b4 {[%clk 0:02:55.8]}
5... O-O {[%clk 0:03:00.8]} 6. c4 {[%clk 0:02:56.1]} 6... dxc4 {[%clk
0:03:00.6]} 7. Nxc4 {[%clk 0:02:55.6]} 7... b6 {[%clk 0:03:00.5]} 8. Bb2 {[%clk
0:02:54.7]} 8... Bb7 {[%clk 0:03:00.9]} 9. Be2 {[%clk 0:02:51.2]} 9... Nbd7
{[%clk 0:03:00.4]} 10. O-O {[%clk 0:02:50.7]} 10... c5 {[%clk 0:03:00.4]} 11.
dxc5 {[%clk 0:02:50.5]} 11... bxc5 {[%clk 0:03:01.3]} 12. b5 {[%clk 0:02:49.2]}
12... Nb6 {[%clk 0:03:00.3]} 13. Qxd8 {[%clk 0:02:24.4]} 13... Rfxd8 {[%clk
0:02:57.4]} 14. a4 {[%clk 0:02:24.5]} 14... Bxf3 {[%clk 0:02:55.8]} 15. gxf3
{[%clk 0:02:24.2]} 15... Nxc4 {[%clk 0:02:52.4]} 16. Bxc4 {[%clk 0:02:24.4]}
16... Nd7 {[%clk 0:02:52.9]} 17. Bxg7 {[%clk 0:02:21.4]} 17... Kxg7 {[%clk
0:02:53.8]} 18. a5 {[%clk 0:02:14.5]} 18... Ne5 {[%clk 0:02:52.8]} 19. Be2
{[%clk 0:02:15.1]} 19... Rd2 {[%clk 0:02:52.3]} 20. Rfe1 {[%clk 0:02:15.7]}
20... c4 {[%clk 0:02:52.1]} 21. f4 {[%clk 0:02:06.3]} 21... Nd3 {[%clk
0:02:51.8]} 22. Bxd3 {[%clk 0:02:06.7]} 22... cxd3 {[%clk 0:02:52.4]} 23. Red1
{[%clk 0:02:06.6]} 23... Rb2 {[%clk 0:02:48]} 24. Rxd3 {[%clk 0:02:01]} 24...
Rxb5 {[%clk 0:02:48.1]} 25. Rd7 {[%clk 0:02:01.3]} 25... e6 {[%clk 0:02:46.9]}
26. a6 {[%clk 0:02:01.5]} 26... Rb6 {[%clk 0:02:42.8]} 27. Rc1 {[%clk
0:01:37.6]} 27... Rxa6 {[%clk 0:02:40.4]} 28. Rcc7 {[%clk 0:01:37.9]} 28... Rf8
{[%clk 0:02:40.5]} 29. Rxa7 {[%clk 0:01:38]} 29... Rc6 {[%clk 0:02:39.4]} 30.
Rac7 {[%clk 0:01:37.5]} 30... Rb6 {[%clk 0:02:39.8]} 31. Rb7 {[%clk 0:01:36.4]}
31... Rxb7 {[%clk 0:02:39.9]} 32. Rxb7 {[%clk 0:01:36.2]} 32... Kf6 {[%clk
0:02:39.7]} 33. Kg2 {[%clk 0:01:36]} 33... Kf5 {[%clk 0:02:39]} 34. h3 {[%clk
0:01:34.9]} 34... h5 {[%clk 0:02:39.1]} 35. Kf3 {[%clk 0:01:34.7]} 35... Kf6
{[%clk 0:02:34.8]} 36. Rb5 {[%clk 0:01:29.9]} 36... Rc8 {[%clk 0:02:33.6]} 37.
Ra5 {[%clk 0:01:29.9]} 37... Rc1 {[%clk 0:02:33.3]} 38. Rb5 {[%clk 0:01:29.5]}
38... Rg1 {[%clk 0:02:33.5]} 39. Ra5 {[%clk 0:01:28.4]} 39... Kg7 {[%clk
0:02:33.6]} 40. Rb5 {[%clk 0:01:28]} 40... Rd1 {[%clk 0:02:28.4]} 41. Ra5 {[%clk
0:01:27.9]} 41... Rd5 {[%clk 0:02:28.8]} 42. Rxd5 {[%clk 0:00:59.6]} 42... exd5
{[%clk 0:02:29.7]} 43. Ke2 {[%clk 0:01:00.1]} 43... Kf6 {[%clk 0:02:29.4]} 44.
h4 {[%clk 0:00:48.6]} 44... Kf5 {[%clk 0:02:27.3]} 45. f3 {[%clk 0:00:49.1]}
45... d4 {[%clk 0:02:18.6]} 46. exd4 {[%clk 0:00:49.3]} 46... Kxf4 {[%clk
0:02:18.6]} 47. Kd3 {[%clk 0:00:49.7]} 47... g5 {[%clk 0:02:10.6]} 48. hxg5
{[%clk 0:00:49.5]} 48... Kxg5 {[%clk 0:02:11.2]} 49. Ke4 {[%clk 0:00:23.6]}
49... h4 {[%clk 0:02:10.2]} 50. d5 {[%clk 0:00:24]} 50... h3 {[%clk 0:02:08.2]}
51. d6 {[%clk 0:00:23.8]} 51... Kf6 {[%clk 0:02:04.1]} 0-1

[Event "Late-Titled-Tuesday-Blitz-June-18-2024"]
[Site "Chess.com"]
[Date "2024.06.18"]
[Round "8"]
[White "szachmistrz2500"]
[Black "insatiable27"]
[Result "0-1"]
[WhiteElo "2485"]
[BlackElo "2371"]
[TimeControl "180+1"]
[EndTime "15:28:00 PDT"]
[Termination "insatiable27 won by checkmate"]

1. e4 {[%clk 0:02:54.9]} 1... e5 {[%clk 0:02:59.2]} 2. Nf3 {[%clk 0:02:53.9]}
2... Nc6 {[%clk 0:02:59.1]} 3. Bb5 {[%clk 0:02:52.8]} 3... Bc5 {[%clk
0:02:57.9]} 4. O-O {[%clk 0:02:51.6]} 4... d6 {[%clk 0:02:56]} 5. c3 {[%clk
0:02:51.1]} 5... a6 {[%clk 0:02:55.4]} 6. Bxc6+ {[%clk 0:02:48.1]} 6... bxc6
{[%clk 0:02:54.9]} 7. d4 {[%clk 0:02:48.7]} 7... exd4 {[%clk 0:02:55.2]} 8. cxd4
{[%clk 0:02:48.7]} 8... Ba7 {[%clk 0:02:55]} 9. h3 {[%clk 0:02:49]} 9... Ne7
{[%clk 0:02:55.3]} 10. Nc3 {[%clk 0:02:48.6]} 10... O-O {[%clk 0:02:55.5]} 11.
Re1 {[%clk 0:02:39.3]} 11... Ng6 {[%clk 0:02:54.4]} 12. Bg5 {[%clk 0:02:36]}
12... f6 {[%clk 0:02:52.5]} 13. Qb3+ {[%clk 0:02:35.6]} 13... Kh8 {[%clk
0:02:51.9]} 14. Be3 {[%clk 0:02:35.6]} 14... f5 {[%clk 0:02:52]} 15. e5 {[%clk
0:02:25.4]} 15... f4 {[%clk 0:02:47.3]} 16. Bd2 {[%clk 0:02:20.9]} 16... dxe5
{[%clk 0:02:43.7]} 17. dxe5 {[%clk 0:02:21]} 17... Nh4 {[%clk 0:02:39.9]} 18.
Ne4 {[%clk 0:02:16.1]} 18... Bf5 {[%clk 0:02:28.3]} 19. Rad1 {[%clk 0:02:11.2]}
19... Rb8 {[%clk 0:02:13.6]} 20. Qa3 {[%clk 0:02:08.8]} 20... Bxe4 {[%clk
0:01:32.3]} 21. Rxe4 {[%clk 0:02:06.5]} 21... Qd5 {[%clk 0:01:32.5]} 22. Rb4
{[%clk 0:01:14.4]} 22... Rxb4 {[%clk 0:01:17.3]} 23. Qxb4 {[%clk 0:01:05.9]}
23... Nxf3+ {[%clk 0:01:15]} 24. gxf3 {[%clk 0:01:06.1]} 24... Rf5 {[%clk
0:01:04.3]} 25. Qe4 {[%clk 0:01:01.3]} 25... Rg5+ {[%clk 0:00:56.6]} 26. Kh1
{[%clk 0:00:49.2]} 26... Qe6 {[%clk 0:00:55.3]} 27. Kh2 {[%clk 0:00:43.9]} 27...
Rh5 {[%clk 0:00:48.9]} 28. Bxf4 {[%clk 0:00:13.3]} 28... Qxh3+ {[%clk
0:00:47.5]} 29. Kg1 {[%clk 0:00:13.6]} 29... Qh1# {[%clk 0:00:47.9]} 0-1

[Event "Late-Titled-Tuesday-Blitz-June-18-2024"]
[Site "Chess.com"]
[Date "2024.06.18"]
[Round "8"]
[White "Oleg_Papayan"]
[Black "EliteChess0967"]
[Result "1-0"]
[WhiteElo "2518"]
[BlackElo "2385"]
[TimeControl "180+1"]
[EndTime "15:28:00 PDT"]
[Termination "Oleg_Papayan won by resignation"]

1. d4 {[%clk 0:02:59.2]} 1... d5 {[%clk 0:02:59.4]} 2. Nc3 {[%clk 0:02:59.6]}
2... e6 {[%clk 0:02:55.3]} 3. Bf4 {[%clk 0:02:58.5]} 3... Nf6 {[%clk 0:02:55.4]}
4. Nb5 {[%clk 0:02:56.6]} 4... Na6 {[%clk 0:02:55.5]} 5. e3 {[%clk 0:02:54.7]}
5... Be7 {[%clk 0:02:52.3]} 6. Nf3 {[%clk 0:02:51]} 6... O-O {[%clk 0:02:51.6]}
7. a4 {[%clk 0:02:46.7]} 7... c6 {[%clk 0:02:50.4]} 8. Nc3 {[%clk 0:02:46.8]}
8... Nb8 {[%clk 0:02:49.3]} 9. Bd3 {[%clk 0:02:40.5]} 9... c5 {[%clk 0:02:48.6]}
10. dxc5 {[%clk 0:02:33.1]} 10... Bxc5 {[%clk 0:02:46.7]} 11. O-O {[%clk
0:02:29]} 11... Nc6 {[%clk 0:02:46.6]} 12. e4 {[%clk 0:02:25.3]} 12... d4 {[%clk
0:02:18.4]} 13. Ne2 {[%clk 0:02:13.6]} 13... Nh5 {[%clk 0:02:15.8]} 14. e5
{[%clk 0:02:09.1]} 14... Qc7 {[%clk 0:02:02]} 15. Re1 {[%clk 0:02:07]} 15... b6
{[%clk 0:01:39.7]} 16. Bg3 {[%clk 0:01:45.8]} 16... Bb7 {[%clk 0:01:36.6]} 17.
Nf4 {[%clk 0:01:46.3]} 17... Nxf4 {[%clk 0:01:18.8]} 18. Bxf4 {[%clk 0:01:47.2]}
18... h6 {[%clk 0:01:15.9]} 19. Qd2 {[%clk 0:01:47.5]} 19... Qe7 {[%clk
0:00:37.9]} 20. Bxh6 {[%clk 0:01:36.3]} 20... gxh6 {[%clk 0:00:30.9]} 21. Qxh6
{[%clk 0:01:37.2]} 21... f5 {[%clk 0:00:31.2]} 22. exf6 {[%clk 0:01:38.1]} 22...
Rxf6 {[%clk 0:00:30.2]} 23. Bh7+ {[%clk 0:01:36.3]} 23... Qxh7 {[%clk
0:00:18.4]} 24. Qxf6 {[%clk 0:01:36.4]} 24... Qf7 {[%clk 0:00:16.1]} 25. Qg5+
{[%clk 0:00:50.9]} 25... Kf8 {[%clk 0:00:15.4]} 26. Qh6+ {[%clk 0:00:47]} 26...
Ke7 {[%clk 0:00:14.3]} 27. Ng5 {[%clk 0:00:45.8]} 1-0